bitfinex-derivatives/quotes_SOLF0:USTF0_20250520
["timestamp","ask_amount","ask_price","bid_price","bid_amount"]
[1747759767013,0.04172337,165.89,165.86,0.03988474]
[1747759767318,0.04172337,165.89,165.87,6.0267]
[1747759768419,0.04172337,165.89,165.86,0.03988474]
[1747759769019,0.04172337,165.89,165.86,6.06698474]
[1747759769215,0.04172337,165.89,165.86,0.03988474]
[1747759769519,0.04172337,165.89,165.87,6.0267]
[1747759770212,0.04172337,165.89,165.88,6.0266]
[1747759770814,0.04172337,165.89,165.86,0.03988474]
[1747759771618,0.04172337,165.89,165.87,6.0267]
[1747759773321,0.04172337,165.89,165.88,6.0266]
[1747759783221,0.04172337,165.89,165.87,6.0269]
[1747759784423,6.06802337,165.89,165.86,6.06708474]
[1747759785320,6.0267,165.88,165.86,0.03988474]
[1747759785521,0.04172337,165.89,165.86,0.03988474]
[1747759786223,6.06822337,165.89,165.86,6.06718474]
[1747759786424,6.06822337,165.89,165.86,0.03988474]
[1747759786425,0.04172337,165.89,165.86,0.03988474]
[1747759786727,6.0268,165.88,165.86,0.03988474]
[1747759786929,0.04172337,165.89,165.86,0.03988474]
[1747759787430,6.06822337,165.89,165.86,6.06718474]
[1747759790228,0.04172337,165.89,165.87,6.0268]
[1747759790626,0.04172337,165.89,165.86,0.03988474]
[1747759790931,6.06822337,165.89,165.86,6.06708474]
[1747759791234,0.04172337,165.89,165.86,6.06708474]
[1747759791437,6.027,165.87,165.86,0.03988474]
[1747759792334,16.14371595,165.87,165.78,63.4216]
[1747759792533,61.5,165.86,165.78,1.9216]
[1747759792834,6.0282,165.84,165.81,6.029]
[1747759793333,6.07130333,165.84,165.81,6.07218278]
[1747759793834,0.04310333,165.84,165.81,0.04318278]
[1747759794436,0.04310333,165.84,165.82,6.0288]
[1747759795335,0.04310333,165.84,165.83,6.0284]
[1747759800341,61.52,165.89,165.81,0.04318278]
[1747759801140,520.84,165.91,165.81,0.04318278]
[1747759801340,0.04025558,165.88,165.84,0.03977995]
[1747759801741,0.04025558,165.88,165.87,6.0268]
[1747759803543,0.04025558,165.88,165.86,6.0272]
[1747759804047,6.06695558,165.88,165.85,8.0284]
[1747759804837,0.04025558,165.88,165.86,6.0271]
[1747759805045,0.04025558,165.88,165.85,2.0009]
[1747759805447,0.04025558,165.88,165.87,6.027]
[1747759810345,0.04025558,165.88,165.86,6.0272]
[1747759811748,6.0271,165.87,165.84,6.06757995]
[1747759812258,6.0271,165.87,165.84,0.03977995]
[1747759812451,0.04025558,165.88,165.84,0.03977995]
[1747759812945,0.04025558,165.88,165.87,6.0269]
[1747759813144,0.04025558,165.88,165.84,0.03977995]
[1747759813545,0.04025558,165.88,165.86,6.0271]
[1747759814046,0.04025558,165.88,165.87,6.0269]
[1747759815046,0.04025558,165.88,165.84,0.03977995]
[1747759815253,0.04025558,165.88,165.86,6.0271]
[1747759815454,0.04025558,165.88,165.84,0.03977995]
[1747759817155,0.04025558,165.88,165.85,6.0275]
[1747759817657,6.06685558,165.88,165.84,6.06767995]
[1747759817850,0.04025558,165.88,165.84,6.06767995]
[1747759818563,6.027,165.87,165.84,6.06767995]
[1747759819461,6.06695558,165.88,165.85,6.0276]
[1747759819660,0.04025558,165.88,165.85,6.0276]
[1747759820162,0.04025558,165.88,165.84,6.06767995]
[1747759820353,0.04025558,165.88,165.84,0.03977995]
[1747759820559,6.06705558,165.88,165.85,6.0275]
[1747759821067,6.06705558,165.88,165.84,0.03977995]
[1747759821267,6.06705558,165.88,165.84,6.06767995]
[1747759821569,0.04025558,165.88,165.84,0.03977995]
[1747759821763,61.5,165.87,165.84,0.03977995]
[1747759821969,6.0277,165.85,165.84,0.03977995]
[1747759824072,6.0275,165.86,165.84,0.03977995]
[1747759824370,71.62371595,165.87,165.84,0.03977995]
[1747759825573,6.0277,165.85,165.84,0.03977995]
[1747759826673,61.5,165.87,165.84,0.03977995]
[1747759826867,0.04025558,165.88,165.84,0.03977995]
[1747759827273,0.04025558,165.88,165.87,6.027]
[1747759827680,0.04025558,165.88,165.86,6.0272]
[1747759828075,0.04025558,165.88,165.84,0.03977995]
[1747759830284,6.06695558,165.88,165.85,6.0276]
[1747759830678,0.04025558,165.88,165.84,0.03977995]
[1747759831073,6.0277,165.85,165.84,0.03977995]
[1747759831580,61.52,165.87,165.84,0.03977995]
[1747759832384,6.0275,165.86,165.84,0.03977995]
[1747759832585,61.52,165.87,165.84,0.03977995]
[1747759832985,67.547,165.87,165.84,0.03977995]
[1747759833687,71.64371595,165.87,165.84,0.03977995]
[1747759834088,6.0277,165.85,165.84,0.03977995]
[1747759834300,0.04025558,165.88,165.84,0.03977995]
[1747759834484,7.44110367,165.88,165.84,0.03977995]
[1747759835480,7.44110367,165.88,165.86,6.0271]
[1747759835681,7.44110367,165.88,165.84,0.03977995]
[1747759836987,0.04025558,165.88,165.87,6.027]
[1747759838394,0.04025558,165.88,165.84,0.03977995]
[1747759838692,6.06705558,165.88,165.84,0.03977995]
[1747759838986,6.06705558,165.88,165.84,6.06757995]
[1747759839185,6.06705558,165.88,165.84,0.03977995]
[1747759839691,6.06705558,165.88,165.85,6.0277]
[1747759840491,0.04025558,165.88,165.84,0.03977995]
[1747759840992,0.04025558,165.88,165.87,6.027]
[1747759842591,0.04025558,165.88,165.86,6.0272]
[1747759843286,6.06685558,165.88,165.85,8.1086]
[1747759843483,0.04025558,165.88,165.85,2.0811]
[1747759843887,0.04025558,165.88,165.87,6.027]
[1747759845085,0.04025558,165.88,165.85,2.0811]
[1747759845997,0.04025558,165.88,165.87,6.027]
[1747759847701,0.04025558,165.88,165.86,6.0273]
[1747759848701,0.04025558,165.88,165.85,2.0811]
[1747759849301,6.0273,165.87,165.85,2.0811]
[1747759849700,6.0273,165.86,165.85,2.0811]
[1747759852797,0.04025558,165.88,165.85,2.0811]
[1747759853404,6.06685558,165.88,165.85,8.1087]
[1747759853902,0.04025558,165.88,165.85,2.0811]
[1747759854104,0.04025558,165.88,165.84,6.06777995]
[1747759854604,6.0273,165.87,165.84,6.06777995]
[1747759855301,6.0273,165.87,165.85,6.0277]
[1747759855506,6.06705558,165.88,165.85,6.0277]
[1747759857300,6.027,165.87,165.85,6.0277]
[1747759858303,0.04025558,165.88,165.86,6.0272]
[1747759858507,0.04025558,165.88,165.84,0.03977995]
[1747759859408,0.04025558,165.88,165.86,6.0271]
[1747759860210,0.04025558,165.88,165.87,6.027]
[1747759862400,0.04025558,165.88,165.84,0.03977995]
[1747759862601,6.0272,165.87,165.84,0.03977995]
[1747759864511,6.06695558,165.88,165.85,6.0275]
[1747759865313,6.027,165.87,165.85,6.0275]
[1747759865511,0.04025558,165.88,165.84,0.03977995]
[1747759866113,6.0277,165.85,165.84,0.03977995]
[1747759867314,6.0275,165.86,165.84,0.03977995]
[1747759867521,0.04025558,165.88,165.84,0.03977995]
[1747759867815,6.06705558,165.88,165.85,6.0275]
[1747759868010,0.04025558,165.88,165.84,0.03977995]
[1747759869114,0.04025558,165.88,165.86,6.0272]
[1747759869811,0.04025558,165.88,165.87,6.027]
[1747759871317,7.40903945,165.92,165.9,6.0257]
[1747759871816,7.40903945,165.92,165.87,1.9227]
[1747759872014,7.40903945,165.92,165.87,4.0302]
[1747759872308,7.40903945,165.92,165.91,6.0255]
[1747759872817,0.04258877,165.93,165.91,6.0255]
[1747759874621,0.04258877,165.93,165.92,6.0252]
[1747759877224,0.04258877,165.93,165.9,6.0257]
[1747759877825,6.06758877,165.93,165.9,6.0257]
[1747759878123,0.04258877,165.93,165.91,6.0254]
[1747759879916,0.04258877,165.93,165.92,6.0252]
[1747759882832,7.40903945,165.97,165.96,6.0237]
[1747759883029,4.23813945,165.97,165.96,6.0237]
[1747759883229,4.23813945,165.97,165.95,6.024]
[1747759883423,4.23813945,165.97,165.91,61.44]
[1747759883628,0.03800527,165.96,165.92,0.04547681]
[1747759884326,0.03800527,165.96,165.94,6.0244]
[1747759884527,0.03800527,165.96,165.92,0.04547681]
[1747759884927,6.06210527,165.96,165.93,6.0246]
[1747759885124,0.03800527,165.96,165.92,0.04547681]
[1747759885937,6.0242,165.95,165.92,0.04547681]
[1747759886138,0.03800527,165.96,165.92,0.04547681]
[1747759886338,0.03800527,165.96,165.95,6.0241]
[1747759887328,0.03800527,165.96,165.92,0.04547681]
[1747759887739,6.0243,165.95,165.92,6.07037681]
[1747759888128,6.0243,165.95,165.92,0.04547681]
[1747759888338,6.06190527,165.96,165.93,6.0247]
[1747759888738,0.03800527,165.96,165.92,0.04547681]
[1747759888940,0.03800527,165.96,165.95,6.0241]
[1747759890241,0.03800527,165.96,165.92,0.04547681]
[1747759891941,6.0247,165.94,165.92,0.04547681]
[1747759892443,61.47800527,165.96,165.92,0.04547681]
[1747759893441,6.0248,165.93,165.92,0.04547681]
[1747759895937,6.0246,165.94,165.92,0.04547681]
[1747759896346,6.0248,165.93,165.92,0.04547681]
[1747759898545,6.0246,165.94,165.92,0.04547681]
[1747759899344,6.0248,165.93,165.92,0.04547681]
[1747759900647,6.0246,165.94,165.92,0.04547681]
[1747759900948,61.47800527,165.96,165.92,0.04547681]
[1747759901151,71.60172122,165.96,165.92,0.04547681]
[1747759901346,6.0248,165.93,165.92,0.04547681]
[1747759905154,6.0246,165.94,165.92,0.04547681]
[1747759905948,6.0248,165.93,165.92,0.04547681]
[1747759906353,10.12371595,165.93,165.84,61.44]
[1747759906953,71.56371595,165.93,165.84,61.44]
[1747759907146,61.44,165.93,165.84,61.44]
[1747759907345,0.04290049,165.9,165.87,0.04244455]
[1747759907850,0.04290049,165.9,165.88,6.0266]
[1747759908253,0.04290049,165.9,165.87,0.04244455]
[1747759908459,6.06880049,165.9,165.87,6.06924455]
[1747759909753,6.06880049,165.9,165.88,6.0266]
[1747759910054,0.04290049,165.9,165.87,0.04244455]
[1747759910450,6.06900049,165.9,165.87,6.06924455]
[1747759910755,0.04290049,165.9,165.87,0.04244455]
[1747759910946,6.0265,165.89,165.87,0.04244455]
[1747759911354,0.04290049,165.9,165.87,0.04244455]
[1747759912651,6.0266,165.88,165.87,0.04244455]
[1747759913254,10.16661644,165.9,165.87,0.04244455]
[1747759913553,0.04290049,165.9,165.87,0.04244455]
[1747759914154,6.06890049,165.9,165.87,6.06914455]
[1747759914352,6.06890049,165.9,165.87,0.04244455]
[1747759914353,0.04290049,165.9,165.87,0.04244455]
[1747759915152,0.04290049,165.9,165.89,6.0263]
[1747759919958,0.04290049,165.9,165.88,6.0265]
[1747759920159,0.04290049,165.9,165.87,0.04244455]
[1747759921757,6.0265,165.89,165.87,0.04244455]
[1747759921958,6.0265,165.89,165.87,6.06944455]
[1747759922257,6.0265,165.89,165.87,0.04244455]
[1747759922853,6.0266,165.88,165.87,0.04244455]
[1747759923256,0.04290049,165.9,165.87,0.04244455]
[1747759924858,6.0266,165.88,165.87,0.04244455]
[1747759926152,0.04290049,165.9,165.87,0.04244455]
[1747759927451,0.04290049,165.9,165.88,6.0266]
[1747759927757,0.04290049,165.9,165.87,0.04244455]
[1747759927958,0.04290049,165.9,165.89,6.0263]
[1747759929357,0.04290049,165.9,165.87,0.04244455]
[1747759930562,0.04290049,165.9,165.89,6.0263]
[1747759933362,0.04290049,165.9,165.87,6.06914455]
[1747759933563,0.04290049,165.9,165.87,0.04244455]
[1747759934562,6.0265,165.89,165.87,0.04244455]
[1747759935666,6.0266,165.88,165.87,0.04244455]
[1747759936360,61.42,165.88,165.8,1.03266371]
[1747759936560,10.12371595,165.87,165.8,1.03266371]
[1747759937165,6.0288,165.82,165.8,1.03266371]
[1747759937356,0.03914245,165.83,165.8,7.06216371]
[1747759937556,0.03914245,165.83,165.8,1.03266371]
[1747759937764,0.03914245,165.83,165.79,1.992204]
[1747759938066,0.03914245,165.83,165.79,8.021904]
[1747759938365,0.03914245,165.83,165.79,1.992204]
[1747759938863,6.06774245,165.83,165.79,8.021904]
[1747759939165,0.03914245,165.83,165.79,1.992204]
[1747759939366,6.0291,165.82,165.79,0.046204]
[1747759939665,0.03914245,165.83,165.79,0.046204]
[1747759939965,0.03914245,165.83,165.82,6.0288]
[1747759940764,0.03914245,165.83,165.81,6.029]
[1747759941765,0.03914245,165.83,165.8,6.0294]
[1747759942567,0.03914245,165.83,165.81,6.0291]
[1747759944068,0.03914245,165.83,165.82,6.0288]
[1747759946271,0.03914245,165.83,165.79,0.046204]
[1747759947576,6.06774245,165.83,165.8,6.0295]
[1747759947872,6.06774245,165.83,165.79,0.046204]
[1747759948174,6.06774245,165.83,165.79,6.075904]
[1747759948472,6.0288,165.82,165.79,6.075904]
[1747759948673,0.03914245,165.83,165.79,0.046204]
[1747759948974,6.029,165.82,165.79,0.046204]
[1747759949277,61.41914245,165.83,165.79,0.046204]
[1747759949877,6.0295,165.81,165.79,0.046204]
[1747759951172,61.41914245,165.83,165.79,0.046204]
[1747759951777,67.44784245,165.83,165.8,6.0295]
[1747759952580,61.41914245,165.83,165.79,0.046204]
[1747759952776,0.03914245,165.83,165.79,0.046204]
[1747759952976,0.03914245,165.83,165.82,6.0288]
[1747759954172,67.4064,165.89,165.86,6.0272]
[1747759954675,67.4064,165.89,165.81,61.38]
[1747759954676,7.44837962,165.9,165.87,6.027]
[1747759954876,7.44837962,165.9,165.81,61.38]
[1747759955071,0.04023868,165.87,165.84,0.03933094]
[1747759955780,6.06753868,165.87,165.85,6.0277]
[1747759956281,0.04023868,165.87,165.85,6.0277]
[1747759958584,0.04023868,165.87,165.86,6.0274]
[1747759958881,7.44837962,165.93,165.85,61.38]
[1747759959083,7.44837962,165.94,165.92,6.0251]
[1747759959483,7.44837962,165.94,165.86,4.085]
[1747759959673,7.44837962,165.94,165.93,6.0248]
[1747759960183,7.44837962,165.94,165.92,0.04088836]
[1747759960785,7.44837962,165.94,165.92,6.06578836]
[1747759961586,6.06650615,165.95,165.92,0.04088836]
[1747759961782,6.0248,165.94,165.92,0.04088836]
[1747759962587,6.0248,165.93,165.92,0.04088836]
[1747759963383,61.38,165.93,165.84,61.38]
[1747759963883,61.38,165.93,165.86,6.0272]
[1747759964078,61.38,165.93,165.84,61.38]
[1747759964478,0.04581996,165.9,165.87,0.04035321]
[1747759965188,6.0265,165.89,165.87,0.04035321]
[1747759965784,6.07191996,165.9,165.87,0.04035321]
[1747759967187,0.04581996,165.9,165.87,6.06735321]
[1747759968381,0.04581996,165.9,165.88,6.0265]
[1747759968592,0.04581996,165.9,165.87,0.04035321]
[1747759969185,0.04581996,165.9,165.88,6.0266]
[1747759969874,0.04581996,165.9,165.87,0.04035321]
[1747759971891,0.04581996,165.9,165.88,6.0265]
[1747759972791,6.07181996,165.9,165.87,6.06725321]
[1747759981702,6.0263,165.89,165.87,0.04035321]
[1747759982005,0.04581996,165.9,165.87,0.04035321]
[1747759982398,6.0266,165.88,165.87,0.04035321]
[1747759983505,0.04581996,165.9,165.87,0.04035321]
[1747759984004,61.32,165.89,165.87,0.04035321]
[1747759984411,6.0266,165.88,165.87,0.04035321]
[1747759986301,61.32,165.89,165.87,0.04035321]
[1747759987507,6.0266,165.88,165.87,0.04035321]
[1747759989206,67.3464,165.89,165.87,0.04035321]
[1747759990405,6.0266,165.88,165.87,0.04035321]
[1747759994110,67.3464,165.89,165.87,0.04035321]
[1747759995311,6.0266,165.88,165.87,0.04035321]
[1747759997211,61.32,165.89,165.87,0.04035321]
[1747759997212,67.3464,165.89,165.87,0.04035321]
[1747759997806,67.3463,165.89,165.87,6.06725321]
[1747759998007,0.04581996,165.9,165.87,0.04035321]
[1747759998515,7.44837962,165.92,165.87,0.04035321]
[1747759998910,7.44837962,165.92,165.91,6.0255]
[1747760000216,0.04063868,165.93,165.92,6.0252]
[1747760000710,6.0252,165.92,165.91,0.04280521]
[1747760003714,71.44371595,165.92,165.85,6.0275]
[1747760004420,71.44371595,165.92,165.84,6.0279]
[1747760004820,6.0269,165.88,165.86,0.04154125]
[1747760005218,0.04352191,165.9,165.86,0.04154125]
[1747760005821,6.0266,165.89,165.86,0.04154125]
[1747760006423,6.0267,165.88,165.86,0.04154125]
[1747760008422,6.027,165.87,165.86,0.04154125]
[1747760008924,6.0268,165.88,165.86,0.04154125]
[1747760014222,6.027,165.87,165.86,0.04154125]
[1747760019735,6.0285,165.83,165.8,6.0294]
[1747760019933,61.26,165.85,165.76,66.17966371]
[1747760020233,61.26,165.84,165.77,6.0304]
[1747760020834,0.04054022,165.82,165.79,0.03885303]
[1747760021034,6.0292,165.81,165.79,0.03885303]
[1747760022734,6.0295,165.8,165.79,0.03885303]
[1747760023737,6.0293,165.81,165.79,0.03885303]
[1747760024938,6.0295,165.8,165.79,0.03885303]
[1747760025133,67.3095,165.8,165.79,0.03885303]
[1747760027833,6.0307,165.77,165.74,6.0316]
[1747760028833,6.06988481,165.77,165.74,6.07369792]
[1747760029033,0.03918481,165.77,165.75,6.0313]
[1747760029235,0.03918481,165.77,165.74,0.04209792]
[1747760029934,0.03918481,165.77,165.76,6.031]
[1747760055461,0.03918481,165.77,165.74,0.04209792]
[1747760056057,6.06978481,165.77,165.74,0.04209792]
[1747760056564,6.0311,165.76,165.74,0.04209792]
[1747760058167,6.0311,165.76,165.74,6.07379792]
[1747760058561,6.0311,165.76,165.74,0.04209792]
[1747760058766,6.0314,165.75,165.74,0.04209792]
[1747760059167,0.03918481,165.77,165.74,0.04209792]
[1747760059479,6.0313,165.76,165.74,0.04209792]
[1747760059765,61.24,165.75,165.66,1.03266371]
[1747760059969,67.2716,165.75,165.68,2.0329]
[1747760060168,67.2716,165.75,165.68,63.2729]
[1747760060470,6.0317,165.74,165.72,6.0322]
[1747760060865,61.28060223,165.75,165.71,0.0394804]
[1747760062472,6.0323,165.73,165.71,0.0394804]
[1747760064569,6.0324,165.72,165.71,0.0394804]
[1747760064770,61.28060223,165.75,165.71,0.0394804]
[1747760064966,6.0323,165.73,165.71,0.0394804]
[1747760066769,6.0319,165.74,165.71,0.0394804]
[1747760067071,61.28060223,165.75,165.71,0.0394804]
[1747760067374,6.0323,165.73,165.71,0.0394804]
[1747760068376,28.22371595,165.74,165.63,1.03266371]
[1747760068575,10.12371595,165.71,165.63,1.03266371]
[1747760068774,61.18,165.7,165.63,1.03266371]
[1747760068975,6.0342,165.68,165.64,6.0352]
[1747760069371,0.04076657,165.68,165.64,6.07920462]
[1747760069573,6.0344,165.67,165.64,0.04400462]
[1747760070080,6.07486657,165.68,165.64,6.07920462]
[1747760071279,0.04076657,165.68,165.64,0.04400462]
[1747760071877,0.04076657,165.68,165.65,6.0348]
[1747760072074,6.07476657,165.68,165.65,6.0348]
[1747760072274,0.04076657,165.68,165.64,0.04400462]
[1747760072472,0.04076657,165.68,165.64,6.07910462]
[1747760072675,6.07496657,165.68,165.64,0.04400462]
[1747760073073,0.04076657,165.68,165.64,0.04400462]
[1747760073378,6.07466657,165.68,165.64,0.04400462]
[1747760073676,6.07466657,165.68,165.65,6.0347]
[1747760074470,0.04076657,165.68,165.64,6.07930462]
[1747760075080,6.0345,165.67,165.64,6.07930462]
[1747760076385,6.07486657,165.68,165.65,6.0349]
[1747760077282,0.04076657,165.68,165.67,6.0343]
[1747760081082,0.04076657,165.68,165.66,6.0345]
[1747760082187,0.04076657,165.68,165.64,0.04400462]
[1747760082685,6.0346,165.66,165.64,0.04400462]
[1747760083088,0.04076657,165.68,165.64,0.04400462]
[1747760083285,6.0348,165.66,165.64,0.04400462]
[1747760086186,6.0344,165.67,165.64,6.07930462]
[1747760086388,0.04076657,165.68,165.64,0.04400462]
[1747760086590,0.04076657,165.68,165.65,6.0349]
[1747760086789,6.07466657,165.68,165.65,6.0349]
[1747760088093,0.04076657,165.68,165.64,0.04400462]
[1747760088590,6.0347,165.66,165.64,0.04400462]
[1747760090191,0.04076657,165.68,165.64,6.07930462]
[1747760090489,0.04076657,165.68,165.64,0.04400462]
[1747760090886,6.0345,165.67,165.64,6.07930462]
[1747760091087,6.0345,165.67,165.64,0.04400462]
[1747760091794,6.0347,165.66,165.64,0.04400462]
[1747760093593,6.035,165.65,165.64,0.04400462]
[1747760095197,6.0348,165.66,165.64,0.04400462]
[1747760096691,6.035,165.65,165.64,0.04400462]
[1747760097593,67.2548,165.66,165.64,0.04400462]
[1747760097897,61.22,165.66,165.64,0.04400462]
[1747760099201,67.2547,165.66,165.64,0.04400462]
[1747760100197,6.035,165.65,165.64,0.04400462]
[1747760100501,61.22,165.66,165.64,0.04400462]
[1747760100901,67.2547,165.66,165.64,0.04400462]
[1747760101104,61.22,165.66,165.64,0.04400462]
[1747760101803,67.2548,165.66,165.64,0.04400462]
[1747760102487,67.2548,165.66,165.64,6.07930462]
[1747760102799,67.2548,165.66,165.64,0.04400462]
[1747760103705,6.035,165.65,165.64,0.04400462]
[1747760104499,67.2548,165.66,165.64,0.04400462]
[1747760104804,61.22,165.66,165.64,0.04400462]
[1747760105001,6.035,165.65,165.64,0.04400462]
[1747760105307,61.22,165.66,165.64,6.07910462]
[1747760105499,61.22,165.66,165.64,0.04400462]
[1747760105702,6.0344,165.67,165.64,0.04400462]
[1747760106006,0.04076657,165.68,165.64,0.04400462]
[1747760106410,0.04076657,165.68,165.66,6.0344]
[1747760106707,6.07466657,165.68,165.66,6.0344]
[1747760107107,0.04076657,165.68,165.67,6.0343]
[1747760111419,0.04076657,165.68,165.65,1.9559]
[1747760111618,0.04076657,165.68,165.66,6.0343]
[1747760112120,0.04076657,165.68,165.65,1.9559]
[1747760113221,0.04076657,165.68,165.66,6.0346]
[1747760115419,0.04076657,165.68,165.65,1.9559]
[1747760116420,0.04076657,165.68,165.67,6.0343]
[1747760117025,7.44837962,165.73,165.65,1.9559]
[1747760117227,7.44837962,165.73,165.66,71.26371595]
[1747760117625,7.44837962,165.73,165.67,4.1095]
[1747760118029,7.44837962,165.73,165.72,6.0324]
[1747760118723,1.09737962,165.73,165.72,6.0324]
[1747760118924,0.04143787,165.74,165.73,6.0321]
[1747760124830,6.03,165.79,165.72,0.04521192]
[1747760125427,6.03,165.79,165.76,6.0307]
[1747760125928,6.07122155,165.79,165.76,6.07627807]
[1747760126132,6.07122155,165.79,165.77,6.0306]
[1747760127139,0.04122155,165.79,165.78,6.0303]
[1747760127737,0.04122155,165.79,165.77,6.0305]
[1747760128038,0.04122155,165.79,165.76,0.04557807]
[1747760128225,0.04122155,165.79,165.77,6.0305]
[1747760128429,0.04122155,165.79,165.76,0.04557807]
[1747760129634,0.04122155,165.79,165.78,6.0303]
[1747760140549,2.155e-05,165.79,165.78,67.0703]
[1747760142650,2.155e-05,165.79,165.78,6.0303]
[1747760151363,2.155e-05,165.79,165.76,61.08557807]
[1747760151957,2.155e-05,165.79,165.78,6.0303]
[1747760159070,2.155e-05,165.79,165.77,6.0304]
[1747760159262,2.155e-05,165.79,165.76,0.04557807]
[1747760159680,2.155e-05,165.79,165.77,60.96]
[1747760160074,2.155e-05,165.79,165.78,6.0303]
[1747760175699,2.155e-05,165.79,165.77,6.0305]
[1747760176195,2.155e-05,165.79,165.76,0.04557807]
[1747760177092,2.155e-05,165.79,165.77,6.0306]
[1747760177494,2.155e-05,165.79,165.76,0.04557807]
[1747760178301,6.03012155,165.79,165.77,6.0306]
[1747760178595,2.155e-05,165.79,165.76,0.04557807]
[1747760178795,6.0306,165.77,165.76,0.04557807]
[1747760179095,10.12371595,165.77,165.73,1.03266371]
[1747760179290,6.0317,165.74,165.73,1.03266371]
[1747760180097,6.0317,165.74,165.72,0.04245416]
[1747760180494,6.07112505,165.75,165.72,0.04245416]
[1747760180903,0.03962505,165.75,165.72,0.04245416]
[1747760181797,6.032,165.74,165.72,0.04245416]
[1747760181998,10.12371595,165.74,165.72,0.04245416]
[1747760182200,1.9762,165.73,165.66,61.99266371]
[1747760182402,3.9796,165.73,165.66,1.03266371]
[1747760183303,0.04075543,165.71,165.68,0.04227114]
[1747760183801,6.0335,165.69,165.68,0.04227114]
[1747760197517,10.12371595,165.7,165.56,23.8815]
[1747760197711,10.12371595,165.67,165.57,60.94]
[1747760197907,60.94,165.66,165.58,6.0374]
[1747760198215,6.0367,165.61,165.57,60.94]
[1747760198413,10.12371595,165.63,165.54,1.03266371]
[1747760198618,6.0378,165.58,165.57,0.04410673]
[1747760200013,0.03872887,165.6,165.52,60.94]
[1747760200213,1.9388,165.61,165.46,633.65339582]
[1747760200419,1.9388,165.61,165.49,60.94]
[1747760200613,1.9388,165.61,165.51,6.04]
[1747760201319,6.0388,165.55,165.54,0.04148641]
[1747760201823,6.0384,165.56,165.54,0.04148641]
[1747760202815,6.0386,165.55,165.54,0.04148641]
[1747760203922,10.12371595,165.56,165.44,60.96]
[1747760204119,60.96,165.55,165.44,67.0025]
[1747760204322,10.12371595,165.53,165.44,6.0425]
[1747760204520,10.12371595,165.53,165.42,4.0]
[1747760204714,10.12371595,165.53,165.42,10.0432]
[1747760204922,0.04070733,165.49,165.46,0.04439887]
[1747760205110,61.00070733,165.49,165.46,0.04439887]
[1747760205616,6.0416,165.47,165.46,0.04439887]
[1747760206321,0.04070733,165.49,165.48,6.0412]
[1747760206622,0.04070733,165.49,165.46,0.04439887]
[1747760206920,0.04070733,165.49,165.47,6.0413]
[1747760207121,0.04070733,165.49,165.46,0.04439887]
[1747760207519,0.04070733,165.49,165.48,6.0412]
[1747760212114,61.02070733,165.49,165.46,0.04439887]
[1747760212318,0.04070733,165.49,165.46,0.04439887]
[1747760212925,0.04070733,165.49,165.48,6.0412]
[1747760213618,0.04070733,165.49,165.47,6.0415]
[1747760214127,0.04070733,165.49,165.46,6.08619887]
[1747760214517,0.04070733,165.49,165.46,0.04439887]
[1747760214718,0.04070733,165.49,165.47,6.0413]
[1747760214914,0.04070733,165.49,165.46,0.04439887]
[1747760215827,0.04070733,165.49,165.47,6.0415]
[1747760216128,0.04070733,165.49,165.46,0.04439887]
[1747760216528,0.04070733,165.49,165.48,6.0412]
[1747760217424,0.04070733,165.49,165.47,6.0414]
[1747760218233,6.08160733,165.49,165.46,6.08619887]
[1747760220633,6.08160733,165.49,165.47,6.0415]
[1747760220821,0.04070733,165.49,165.47,6.0415]
[1747760221935,6.0412,165.48,165.46,0.04439887]
[1747760222132,0.04070733,165.49,165.46,0.04439887]
[1747760222535,0.04070733,165.49,165.48,6.0412]
[1747760227032,0.04070733,165.49,165.47,8.0294]
[1747760227233,0.04070733,165.49,165.47,6.0414]
[1747760227632,0.04070733,165.49,165.46,0.04439887]
[1747760228032,6.0412,165.48,165.46,0.04439887]
[1747760228236,0.04070733,165.49,165.46,0.04439887]
[1747760228627,6.08180733,165.49,165.46,6.08609887]
[1747760229143,0.04070733,165.49,165.46,0.04439887]
[1747760231140,6.0415,165.47,165.46,0.04439887]
[1747760231339,67.0015,165.47,165.46,0.04439887]
[1747760232541,6.0413,165.48,165.46,0.04439887]
[1747760232739,0.04070733,165.49,165.46,0.04439887]
[1747760232940,0.04070733,165.49,165.46,6.08609887]
[1747760233141,0.04070733,165.49,165.46,0.04439887]
[1747760233741,6.0415,165.48,165.46,0.04439887]
[1747760234339,6.08160733,165.49,165.46,6.08629887]